[Event "Live Chess"]
[Site "Chess.com"]
[Date "2024.06.01"]
[Round "-"]
[White "SebasASB"]
[Black "Cruiseylee78"]
[Result "1-0"]
[WhiteElo "2158"]
[BlackElo "1651"]
[TimeControl "300"]
[EndTime "10:24:28 PDT"]
[Termination "SebasASB won by checkmate"]

1. g4 {[%clk 0:04:52.6]} 1... d6 {[%clk 0:04:59.9]} 2. h3 {[%clk 0:04:49.8]}
2... Nd7 {[%clk 0:04:56.4]} 3. Bg2 {[%clk 0:04:49.3]} 3... e5 {[%clk 0:04:55.5]}
4. c4 {[%clk 0:04:41.1]} 4... c6 {[%clk 0:04:54.6]} 5. Nc3 {[%clk 0:04:38.9]}
5... Ngf6 {[%clk 0:04:50.8]} 6. d3 {[%clk 0:04:37.8]} 6... h6 {[%clk 0:04:49.6]}
7. d4 {[%clk 0:04:21.4]} 7... Qc7 {[%clk 0:04:45.2]} 8. Be3 {[%clk 0:04:06]}
8... Be7 {[%clk 0:04:42.6]} 9. d5 {[%clk 0:04:02.6]} 9... Nf8 {[%clk 0:04:41]}
10. Qd3 {[%clk 0:03:54.4]} 10... g5 {[%clk 0:04:38.8]} 11. Ne4 {[%clk
0:03:52.9]} 11... Ng6 {[%clk 0:04:36.5]} 12. dxc6 {[%clk 0:03:38.1]} 12... bxc6
{[%clk 0:04:34.6]} 13. Nxf6+ {[%clk 0:03:36.9]} 13... Bxf6 {[%clk 0:04:32.6]}
14. O-O-O {[%clk 0:03:36.5]} 14... Be7 {[%clk 0:04:11.2]} 15. Be4 {[%clk
0:03:31.6]} 15... Nf4 {[%clk 0:04:09.6]} 16. Bxf4 {[%clk 0:03:29.8]} 16... exf4
{[%clk 0:04:04.5]} 17. Nf3 {[%clk 0:03:25.5]} 17... Rb8 {[%clk 0:04:03.6]} 18.
b3 {[%clk 0:03:19.3]} 18... Be6 {[%clk 0:03:53.5]} 19. Kb1 {[%clk 0:03:18.2]}
19... Qa5 {[%clk 0:03:26.1]} 20. Bxc6+ {[%clk 0:02:59.9]} 20... Kf8 {[%clk
0:03:24.9]} 21. Bd5 {[%clk 0:02:52.2]} 21... Bxd5 {[%clk 0:03:14.8]} 22. Qxd5
{[%clk 0:02:51.1]} 22... Qxd5 {[%clk 0:03:12]} 23. Rxd5 {[%clk 0:02:49.4]} 23...
Kg7 {[%clk 0:03:09.4]} 24. Nd4 {[%clk 0:02:42]} 24... Rhe8 {[%clk 0:02:55]} 25.
Nf5+ {[%clk 0:02:40.9]} 25... Kf6 {[%clk 0:02:53.6]} 26. e3 {[%clk 0:02:31.3]}
26... h5 {[%clk 0:02:50.4]} 27. gxh5 {[%clk 0:02:18]} 27... Rec8 {[%clk
0:02:45.8]} 28. exf4 {[%clk 0:02:07]} 28... Rxc4 {[%clk 0:02:41.7]} 29. fxg5+
{[%clk 0:02:05.5]} 29... Ke6 {[%clk 0:02:39]} 30. Rhd1 {[%clk 0:02:00.6]} 30...
Rf4 {[%clk 0:02:32.8]} 31. Nxe7 {[%clk 0:01:52.8]} 31... Kxe7 {[%clk 0:02:31.5]}
32. Rxd6 {[%clk 0:01:52.5]} 32... Rxf2 {[%clk 0:02:30.4]} 33. Rd7+ {[%clk
0:01:45]} 33... Kf8 {[%clk 0:02:29]} 34. Rxa7 {[%clk 0:01:35.6]} 34... Rh2
{[%clk 0:02:22.1]} 35. Rf1 {[%clk 0:01:25.9]} 35... Rxh3 {[%clk 0:02:17.6]} 36.
Rfxf7+ {[%clk 0:01:23.1]} 36... Kg8 {[%clk 0:02:17]} 37. Rg7+ {[%clk 0:01:17.7]}
37... Kf8 {[%clk 0:02:14.8]} 38. Raf7+ {[%clk 0:01:16.4]} 38... Ke8 {[%clk
0:02:13.9]} 39. g6 {[%clk 0:01:09.5]} 39... Rxh5 {[%clk 0:02:12.2]} 40. Rg8#
{[%clk 0:01:08.4]} 1-0

[Event "Live Chess"]
[Site "Chess.com"]
[Date "2024.06.01"]
[Round "-"]
[White "Hazban"]
[Black "StoreySniper"]
[Result "0-1"]
[WhiteElo "2038"]
[BlackElo "2543"]
[TimeControl "300"]
[EndTime "10:24:37 PDT"]
[Termination "StoreySniper won by checkmate"]

1. d4 {[%clk 0:04:59]} 1... g6 {[%clk 0:04:57.9]} 2. e4 {[%clk 0:04:57.5]} 2...
Bg7 {[%clk 0:04:57.5]} 3. e5 {[%clk 0:04:56.9]} 3... c5 {[%clk 0:04:56.8]} 4. f4
{[%clk 0:04:55.7]} 4... cxd4 {[%clk 0:04:55.8]} 5. Nf3 {[%clk 0:04:54.5]} 5...
Nc6 {[%clk 0:04:55.3]} 6. Nxd4 {[%clk 0:04:53.4]} 6... d6 {[%clk 0:04:52.2]} 7.
Nxc6 {[%clk 0:04:52.2]} 7... bxc6 {[%clk 0:04:51.3]} 8. Nc3 {[%clk 0:04:51.6]}
8... dxe5 {[%clk 0:04:48.9]} 9. Qf3 {[%clk 0:04:50.7]} 9... Nf6 {[%clk
0:04:34.6]} 10. Bc4 {[%clk 0:04:49.2]} 10... O-O {[%clk 0:04:30.6]} 11. fxe5
{[%clk 0:04:45.3]} 11... Nd5 {[%clk 0:04:28.7]} 12. O-O {[%clk 0:04:30.3]} 12...
Bxe5 {[%clk 0:04:15.1]} 13. Bh6 {[%clk 0:04:24.3]} 13... Bg7 {[%clk 0:03:34.1]}
14. Bxg7 {[%clk 0:04:23]} 14... Kxg7 {[%clk 0:03:34]} 15. Rad1 {[%clk
0:04:21.8]} 15... e6 {[%clk 0:03:17]} 16. Kh1 {[%clk 0:03:43.5]} 16... Qb6
{[%clk 0:03:09.8]} 17. Nxd5 {[%clk 0:03:42.5]} 17... cxd5 {[%clk 0:03:07.9]} 18.
Bb3 {[%clk 0:03:41.7]} 18... Ba6 {[%clk 0:03:04.5]} 19. Qf6+ {[%clk 0:03:38.9]}
19... Kg8 {[%clk 0:03:03]} 20. Rf3 {[%clk 0:03:36.6]} 20... Be2 {[%clk
0:02:56.4]} 21. Rh3 {[%clk 0:03:25.5]} 21... Bxd1 {[%clk 0:02:53]} 22. Qh4
{[%clk 0:03:24.2]} 22... h5 {[%clk 0:02:42.2]} 23. c4 {[%clk 0:03:16.3]} 23...
Bg4 {[%clk 0:02:29.5]} 24. Rg3 {[%clk 0:03:09.4]} 24... dxc4 {[%clk 0:02:26.5]}
25. Bxc4 {[%clk 0:03:04.1]} 25... Rac8 {[%clk 0:02:25.5]} 26. b3 {[%clk
0:03:02.2]} 26... Rxc4 {[%clk 0:02:24.2]} 27. h3 {[%clk 0:03:00.3]} 27... Rc1+
{[%clk 0:02:22.1]} 28. Kh2 {[%clk 0:02:59.3]} 28... Qg1# {[%clk 0:02:21.1]} 0-1

[Event "Live Chess"]
[Site "Chess.com"]
[Date "2024.06.01"]
[Round "-"]
[White "OliWally08"]
[Black "Velocity"]
[Result "0-1"]
[WhiteElo "1258"]
[BlackElo "1721"]
[TimeControl "300"]
[EndTime "10:24:38 PDT"]
[Termination "Velocity won on time"]

1. e4 {[%clk 0:04:58.5]} 1... c5 {[%clk 0:04:59.4]} 2. c3 {[%clk 0:04:57.2]}
2... d5 {[%clk 0:04:58.6]} 3. exd5 {[%clk 0:04:55.8]} 3... Qxd5 {[%clk
0:04:58.5]} 4. d4 {[%clk 0:04:46.3]} 4... cxd4 {[%clk 0:04:58.4]} 5. cxd4 {[%clk
0:04:44.4]} 5... Nc6 {[%clk 0:04:57.8]} 6. Nf3 {[%clk 0:04:41.8]} 6... Bg4
{[%clk 0:04:57.1]} 7. Nc3 {[%clk 0:04:37.1]} 7... Qa5 {[%clk 0:04:45.9]} 8. d5
{[%clk 0:04:27.5]} 8... Ne5 {[%clk 0:04:39.1]} 9. Be2 {[%clk 0:04:19.9]} 9...
Nxf3+ {[%clk 0:04:29.5]} 10. Bxf3 {[%clk 0:04:17.4]} 10... Bxf3 {[%clk
0:04:28.8]} 11. Qxf3 {[%clk 0:04:14.7]} 11... Nf6 {[%clk 0:04:26.6]} 12. Bd2
{[%clk 0:04:12.2]} 12... Qb6 {[%clk 0:04:18.6]} 13. Be3 {[%clk 0:04:00.6]} 13...
Qxb2 {[%clk 0:04:11]} 14. O-O {[%clk 0:03:40.7]} 14... Qxc3 {[%clk 0:04:08.4]}
15. Rac1 {[%clk 0:03:22.6]} 15... Qe5 {[%clk 0:03:58.6]} 16. Rfd1 {[%clk
0:02:05.5]} 16... g6 {[%clk 0:03:11.3]} 17. Qe2 {[%clk 0:01:42.9]} 17... Bg7
{[%clk 0:02:49]} 18. Qb5+ {[%clk 0:01:34.5]} 18... Kf8 {[%clk 0:02:05.2]} 19.
Qxb7 {[%clk 0:01:10.4]} 19... Re8 {[%clk 0:01:38.1]} 20. Rc8 {[%clk 0:00:31.9]}
20... h5 {[%clk 0:01:24.1]} 21. Bc5 {[%clk 0:00:19.3]} 21... Kg8 {[%clk
0:01:13.9]} 22. Rxe8+ {[%clk 0:00:14.9]} 22... Nxe8 {[%clk 0:01:12.9]} 23. Bxe7
{[%clk 0:00:12.9]} 23... Kh7 {[%clk 0:01:07.8]} 24. d6 {[%clk 0:00:11.7]} 24...
Nxd6 {[%clk 0:00:54.3]} 25. Bxd6 {[%clk 0:00:10.1]} 25... Rd8 {[%clk 0:00:53.4]}
26. Qc7 {[%clk 0:00:05.9]} 26... Qf6 {[%clk 0:00:31.9]} 27. Re1 {[%clk
0:00:02.8]} 27... Qxd6 {[%clk 0:00:29]} 28. Qxf7 {[%clk 0:00:00.4]} 28... Qd1
{[%clk 0:00:26.2]} 0-1

[Event "Live Chess"]
[Site "Chess.com"]
[Date "2024.06.01"]
[Round "-"]
[White "viktorskliarov"]
[Black "Frankie_Badacsonyi"]
[Result "1-0"]
[WhiteElo "2642"]
[BlackElo "2441"]
[TimeControl "300"]
[EndTime "10:24:38 PDT"]
[Termination "viktorskliarov won by resignation"]

1. e4 {[%clk 0:04:59.7]} 1... c6 {[%clk 0:04:59]} 2. d4 {[%clk 0:04:58.5]} 2...
d5 {[%clk 0:04:58.9]} 3. e5 {[%clk 0:04:57.4]} 3... Bf5 {[%clk 0:04:57.7]} 4.
Nf3 {[%clk 0:04:55.8]} 4... e6 {[%clk 0:04:57]} 5. Be2 {[%clk 0:04:55.3]} 5...
Ne7 {[%clk 0:04:56.3]} 6. O-O {[%clk 0:04:54.2]} 6... Ng6 {[%clk 0:04:55.8]} 7.
a4 {[%clk 0:04:50.6]} 7... Nd7 {[%clk 0:04:53.9]} 8. a5 {[%clk 0:04:49.2]} 8...
f6 {[%clk 0:04:51.8]} 9. exf6 {[%clk 0:04:37]} 9... Qxf6 {[%clk 0:04:51.7]} 10.
c4 {[%clk 0:04:21.8]} 10... Bd6 {[%clk 0:04:49.7]} 11. a6 {[%clk 0:04:08.4]}
11... b6 {[%clk 0:04:47.7]} 12. Nc3 {[%clk 0:04:04.2]} 12... O-O {[%clk
0:04:37.8]} 13. Bg5 {[%clk 0:03:58.5]} 13... Qf7 {[%clk 0:04:36.8]} 14. Qd2
{[%clk 0:03:45.7]} 14... h6 {[%clk 0:04:34.3]} 15. Be3 {[%clk 0:03:44.3]} 15...
Kh8 {[%clk 0:04:22.5]} 16. h3 {[%clk 0:03:16.9]} 16... Qf6 {[%clk 0:03:51.3]}
17. Rfe1 {[%clk 0:02:40.6]} 17... Rae8 {[%clk 0:03:45.6]} 18. Rac1 {[%clk
0:02:31.6]} 18... Nh4 {[%clk 0:03:02]} 19. Nxh4 {[%clk 0:02:26.4]} 19... Qxh4
{[%clk 0:03:01.9]} 20. Bf1 {[%clk 0:02:18.6]} 20... Nf6 {[%clk 0:02:44.5]} 21.
Bd3 {[%clk 0:01:41.8]} 21... Qh5 {[%clk 0:01:36.1]} 22. Bxf5 {[%clk 0:01:39.6]}
22... Qxf5 {[%clk 0:01:36]} 23. b3 {[%clk 0:01:25.9]} 23... Bb4 {[%clk
0:01:25.9]} 24. Qc2 {[%clk 0:01:22]} 24... Qxc2 {[%clk 0:01:20.6]} 25. Rxc2
{[%clk 0:01:20.5]} 25... Ne4 {[%clk 0:01:17]} 26. Nxe4 {[%clk 0:01:14.2]} 26...
Bxe1 {[%clk 0:01:16.3]} 27. Nd6 {[%clk 0:01:13.5]} 27... Rd8 {[%clk 0:01:07.7]}
28. Nb7 {[%clk 0:01:10.1]} 28... Rd7 {[%clk 0:01:06.4]} 29. c5 {[%clk
0:01:06.1]} 29... b5 {[%clk 0:00:53.9]} 30. Kf1 {[%clk 0:01:03.1]} 30... Bb4
{[%clk 0:00:52.8]} 31. Ke2 {[%clk 0:01:02]} 31... Re8 {[%clk 0:00:51.4]} 32. f4
{[%clk 0:01:00.5]} 32... Kg8 {[%clk 0:00:50.7]} 33. Kd3 {[%clk 0:00:53.8]} 33...
Rxb7 {[%clk 0:00:47.4]} 34. axb7 {[%clk 0:00:51.7]} 34... Rb8 {[%clk 0:00:47]}
35. Ra2 {[%clk 0:00:44.6]} 35... Rxb7 {[%clk 0:00:42.8]} 36. Ra6 {[%clk
0:00:44.1]} 36... Rc7 {[%clk 0:00:42]} 37. f5 {[%clk 0:00:39.3]} 37... exf5
{[%clk 0:00:40.8]} 38. Bf4 {[%clk 0:00:38.4]} 38... Rc8 {[%clk 0:00:40]} 39.
Rxa7 {[%clk 0:00:37.5]} 39... Be1 {[%clk 0:00:26]} 40. Be5 {[%clk 0:00:35.9]}
40... g5 {[%clk 0:00:24.9]} 41. Rg7+ {[%clk 0:00:32]} 41... Kf8 {[%clk 0:00:24]}
42. Rh7 {[%clk 0:00:31.5]} 1-0

[Event "Live Chess"]
[Site "Chess.com"]
[Date "2024.06.01"]
[Round "-"]
[White "EgbertIII"]
[Black "GwaryTek"]
[Result "0-1"]
[WhiteElo "1450"]
[BlackElo "1899"]
[TimeControl "300"]
[EndTime "10:24:41 PDT"]
[Termination "GwaryTek won by checkmate"]

1. b4 {[%clk 0:04:57]} 1... Nf6 {[%clk 0:04:59.9]} 2. Bb2 {[%clk 0:04:54.7]}
2... b6 {[%clk 0:04:59.8]} 3. Nf3 {[%clk 0:04:52.1]} 3... Bb7 {[%clk 0:04:58.4]}
4. c4 {[%clk 0:04:50.6]} 4... e6 {[%clk 0:04:54.1]} 5. a3 {[%clk 0:04:48.7]}
5... a5 {[%clk 0:04:52.4]} 6. b5 {[%clk 0:04:46.8]} 6... d6 {[%clk 0:04:51.3]}
7. Nc3 {[%clk 0:04:40.2]} 7... Nbd7 {[%clk 0:04:50.6]} 8. d4 {[%clk 0:04:38.6]}
8... Be7 {[%clk 0:04:48.5]} 9. e3 {[%clk 0:04:37.6]} 9... O-O {[%clk 0:04:48]}
10. Be2 {[%clk 0:04:35.8]} 10... Re8 {[%clk 0:04:39.1]} 11. O-O {[%clk 0:04:34]}
11... Rc8 {[%clk 0:04:37.4]} 12. a4 {[%clk 0:04:29.7]} 12... Nf8 {[%clk
0:04:33.4]} 13. d5 {[%clk 0:04:12.6]} 13... Ng6 {[%clk 0:04:26.4]} 14. e4 {[%clk
0:03:58.5]} 14... e5 {[%clk 0:04:19.1]} 15. Bd3 {[%clk 0:03:38.6]} 15... Nf4
{[%clk 0:03:52.3]} 16. Ne2 {[%clk 0:03:33.1]} 16... g6 {[%clk 0:03:39.4]} 17.
Nxf4 {[%clk 0:03:25.8]} 17... exf4 {[%clk 0:03:37.8]} 18. Qd2 {[%clk 0:03:18.3]}
18... Nh5 {[%clk 0:03:35]} 19. Nd4 {[%clk 0:03:01.1]} 19... Bf6 {[%clk
0:03:26.3]} 20. Nc6 {[%clk 0:02:45.6]} 20... Bxc6 {[%clk 0:03:25]} 21. Bxf6
{[%clk 0:02:39.3]} 21... Qxf6 {[%clk 0:03:24.9]} 22. bxc6 {[%clk 0:02:31.2]}
22... Qd4 {[%clk 0:02:57.5]} 23. Rad1 {[%clk 0:02:21]} 23... Re5 {[%clk
0:02:47.5]} 24. Rfe1 {[%clk 0:02:07.5]} 24... Rce8 {[%clk 0:02:35.5]} 25. Kh1
{[%clk 0:01:56.4]} 25... f5 {[%clk 0:02:19.5]} 26. f3 {[%clk 0:01:45]} 26...
fxe4 {[%clk 0:02:16.9]} 27. fxe4 {[%clk 0:01:42.3]} 27... Ng3+ {[%clk
0:02:11.3]} 28. hxg3 {[%clk 0:01:30.4]} 28... Rh5# {[%clk 0:02:11.2]} 0-1

[Event "Live Chess"]
[Site "Chess.com"]
[Date "2024.06.01"]
[Round "-"]
[White "Ninifu"]
[Black "E2E4colchester"]
[Result "1-0"]
[WhiteElo "2045"]
[BlackElo "1090"]
[TimeControl "300"]
[EndTime "10:24:43 PDT"]
[Termination "Ninifu won by checkmate"]

1. d4 {[%clk 0:04:57.1]} 1... d5 {[%clk 0:04:58.6]} 2. e4 {[%clk 0:04:55.4]}
2... dxe4 {[%clk 0:04:57.1]} 3. Nc3 {[%clk 0:04:54.8]} 3... Nf6 {[%clk
0:04:54.9]} 4. f3 {[%clk 0:04:54]} 4... e6 {[%clk 0:04:53.7]} 5. fxe4 {[%clk
0:04:52.7]} 5... c6 {[%clk 0:04:47.4]} 6. Nf3 {[%clk 0:04:51]} 6... Bb4 {[%clk
0:04:44.9]} 7. Bd3 {[%clk 0:04:49.4]} 7... O-O {[%clk 0:04:42.6]} 8. O-O {[%clk
0:04:47.6]} 8... Bxc3 {[%clk 0:04:40.3]} 9. bxc3 {[%clk 0:04:46.2]} 9... Re8
{[%clk 0:04:37.1]} 10. e5 {[%clk 0:04:45.3]} 10... Nd5 {[%clk 0:04:36]} 11. Ng5
{[%clk 0:04:36.4]} 11... g6 {[%clk 0:04:30.5]} 12. Nxf7 {[%clk 0:04:10.8]} 12...
Qe7 {[%clk 0:04:25.3]} 13. Nh6+ {[%clk 0:03:54]} 13... Kg7 {[%clk 0:04:20.3]}
14. Rf7+ {[%clk 0:03:45.6]} 14... Qxf7 {[%clk 0:04:17.7]} 15. Nxf7 {[%clk
0:03:44.8]} 15... Kxf7 {[%clk 0:04:16.7]} 16. Qf3+ {[%clk 0:03:40.9]} 16... Kg7
{[%clk 0:04:14.5]} 17. Bg5 {[%clk 0:03:35.6]} 17... Rf8 {[%clk 0:04:03.7]} 18.
Bh6+ {[%clk 0:03:33.8]} 18... Kg8 {[%clk 0:04:01.5]} 19. Qxf8# {[%clk
0:03:32.8]} 1-0

[Event "Live Chess"]
[Site "Chess.com"]
[Date "2024.06.01"]
[Round "-"]
[White "A3ndrey9"]
[Black "elephantgerrald"]
[Result "1-0"]
[WhiteElo "1259"]
[BlackElo "756"]
[TimeControl "300"]
[EndTime "10:24:44 PDT"]
[Termination "A3ndrey9 won by checkmate"]

1. Nf3 {[%clk 0:04:57.2]} 1... d5 {[%clk 0:04:56.3]} 2. d4 {[%clk 0:04:55.3]}
2... Nc6 {[%clk 0:04:54.7]} 3. g3 {[%clk 0:04:46.9]} 3... Nf6 {[%clk 0:04:52.1]}
4. Bg2 {[%clk 0:04:46.4]} 4... Bf5 {[%clk 0:04:50.7]} 5. Bf4 {[%clk 0:04:45.1]}
5... e6 {[%clk 0:04:49.3]} 6. a3 {[%clk 0:04:42.9]} 6... Bd6 {[%clk 0:04:48.1]}
7. Bg5 {[%clk 0:04:40.9]} 7... O-O {[%clk 0:04:46.7]} 8. O-O {[%clk 0:04:39.4]}
8... h6 {[%clk 0:04:45.1]} 9. Bxf6 {[%clk 0:04:37.9]} 9... Qxf6 {[%clk
0:04:43.8]} 10. Re1 {[%clk 0:04:35.2]} 10... Qg6 {[%clk 0:04:42]} 11. Nbd2
{[%clk 0:04:20.1]} 11... Bxc2 {[%clk 0:04:40.5]} 12. Qc1 {[%clk 0:04:19.2]}
12... Bf5 {[%clk 0:04:36.9]} 13. Nh4 {[%clk 0:04:14.7]} 13... Nxd4 {[%clk
0:04:34.2]} 14. Nxg6 {[%clk 0:04:12.4]} 14... Bxg6 {[%clk 0:04:31.7]} 15. e4
{[%clk 0:04:08.2]} 15... dxe4 {[%clk 0:04:29.4]} 16. Bxe4 {[%clk 0:04:05.5]}
16... Bxe4 {[%clk 0:04:27.5]} 17. Rxe4 {[%clk 0:04:04.8]} 17... e5 {[%clk
0:04:16.8]} 18. Qc3 {[%clk 0:03:53.8]} 18... f5 {[%clk 0:04:13.5]} 19. Ree1
{[%clk 0:03:49.8]} 19... Bc5 {[%clk 0:03:59.2]} 20. Qxc5 {[%clk 0:03:44.7]}
20... b6 {[%clk 0:03:57.9]} 21. Qc4+ {[%clk 0:03:40.3]} 21... Kh7 {[%clk
0:03:52.1]} 22. Nb3 {[%clk 0:03:36.2]} 22... b5 {[%clk 0:03:48.4]} 23. Qxc7
{[%clk 0:03:30]} 23... Nxb3 {[%clk 0:03:46.8]} 24. Rad1 {[%clk 0:03:21.9]} 24...
Rac8 {[%clk 0:03:42.5]} 25. Qxe5 {[%clk 0:03:16.7]} 25... Rf6 {[%clk 0:03:34.5]}
26. Qxb5 {[%clk 0:03:13.9]} 26... Rc5 {[%clk 0:03:31.7]} 27. Qxb3 {[%clk
0:03:12.3]} 27... a6 {[%clk 0:03:29.8]} 28. Qb7 {[%clk 0:03:09.9]} 28... Rcc6
{[%clk 0:03:24.3]} 29. Rd7 {[%clk 0:03:08.3]} 29... Rg6 {[%clk 0:03:21]} 30.
Rxg7+ {[%clk 0:03:04.6]} 30... Rxg7 {[%clk 0:03:19.3]} 31. Qxc6 {[%clk
0:03:04.2]} 31... Kh8 {[%clk 0:03:16]} 32. Qxh6+ {[%clk 0:02:59.7]} 32... Rh7
{[%clk 0:03:14.6]} 33. Re8# {[%clk 0:02:58.4]} 1-0

[Event "Live Chess"]
[Site "Chess.com"]
[Date "2024.06.01"]
[Round "-"]
[White "gmnorfolk"]
[Black "PureDashingOctopus"]
[Result "0-1"]
[WhiteElo "2125"]
[BlackElo "2227"]
[TimeControl "300"]
[EndTime "10:24:46 PDT"]
[Termination "PureDashingOctopus won by resignation"]

1. c4 {[%clk 0:04:57.1]} 1... c5 {[%clk 0:04:58.5]} 2. Nc3 {[%clk 0:04:52.5]}
2... Nc6 {[%clk 0:04:57.2]} 3. Nf3 {[%clk 0:04:50.6]} 3... g6 {[%clk 0:04:51.3]}
4. e3 {[%clk 0:04:50.5]} 4... Nf6 {[%clk 0:04:48.6]} 5. d4 {[%clk 0:04:48.7]}
5... cxd4 {[%clk 0:04:47.9]} 6. exd4 {[%clk 0:04:46.8]} 6... d5 {[%clk
0:04:47.4]} 7. cxd5 {[%clk 0:04:42.1]} 7... Nxd5 {[%clk 0:04:46]} 8. Bc4 {[%clk
0:04:40.6]} 8... Nb6 {[%clk 0:04:42.6]} 9. Bb3 {[%clk 0:04:37.5]} 9... Bg7
{[%clk 0:04:41.3]} 10. d5 {[%clk 0:04:28.2]} 10... Na5 {[%clk 0:04:37]} 11. Bc2
{[%clk 0:04:23.4]} 11... Bxc3+ {[%clk 0:04:30.6]} 12. bxc3 {[%clk 0:04:21.7]}
12... Qxd5 {[%clk 0:04:29.6]} 13. Qe2 {[%clk 0:04:17.9]} 13... Bg4 {[%clk
0:04:24.5]} 14. O-O {[%clk 0:04:12.6]} 14... Bxf3 {[%clk 0:04:22.4]} 15. gxf3
{[%clk 0:04:11.1]} 15... O-O {[%clk 0:04:15.9]} 16. Qxe7 {[%clk 0:04:09.4]}
16... Qxf3 {[%clk 0:04:10]} 17. Bh6 {[%clk 0:03:56.7]} 17... Rfe8 {[%clk
0:04:06.8]} 18. Qh4 {[%clk 0:03:50.9]} 18... Re5 {[%clk 0:03:54.7]} 19. Rad1
{[%clk 0:03:41.4]} 19... Nc6 {[%clk 0:03:43.5]} 20. Bb3 {[%clk 0:03:31.8]} 20...
Rh5 {[%clk 0:03:39.5]} 21. Qg3 {[%clk 0:02:56.3]} 21... Qxg3+ {[%clk 0:03:35.9]}
22. fxg3 {[%clk 0:02:55.2]} 22... Rxh6 {[%clk 0:03:35.5]} 23. Rxf7 {[%clk
0:02:52.4]} 23... Kh8 {[%clk 0:03:31]} 24. Rxb7 {[%clk 0:02:48.2]} 24... Na5
{[%clk 0:03:28.2]} 25. Rf7 {[%clk 0:02:40.1]} 25... Nxb3 {[%clk 0:03:26.7]} 26.
axb3 {[%clk 0:02:40]} 26... Rh5 {[%clk 0:03:21.5]} 27. Re1 {[%clk 0:02:35]}
27... Rf5 {[%clk 0:03:02.8]} 28. Rb7 {[%clk 0:02:31]} 28... Nd5 {[%clk
0:02:50.9]} 29. c4 {[%clk 0:02:29.9]} 29... Nf6 {[%clk 0:02:47]} 30. Ree7 {[%clk
0:02:28.3]} 30... a5 {[%clk 0:02:07.1]} 31. h3 {[%clk 0:02:23.2]} 31... Re8
{[%clk 0:01:41.2]} 32. Rf7 {[%clk 0:02:05.8]} 32... Re1+ {[%clk 0:01:08.9]} 33.
Kg2 {[%clk 0:02:02.5]} 33... Re2+ {[%clk 0:01:06.8]} 34. Kg1 {[%clk 0:01:59.3]}
34... Re1+ {[%clk 0:01:06.2]} 35. Kg2 {[%clk 0:01:57.6]} 35... Ref1 {[%clk
0:00:57.4]} 36. g4 {[%clk 0:01:42.4]} 36... R5f2+ {[%clk 0:00:54]} 37. Kg3
{[%clk 0:01:33.4]} 37... Ne4+ {[%clk 0:00:51.5]} 0-1

[Event "Live Chess"]
[Site "Chess.com"]
[Date "2024.06.01"]
[Round "-"]
[White "hapehansen"]
[Black "DJ_Lambton"]
[Result "1-0"]
[WhiteElo "2245"]
[BlackElo "1774"]
[TimeControl "300"]
[EndTime "10:24:46 PDT"]
[Termination "hapehansen won by resignation"]

1. Nf3 {[%clk 0:04:55.5]} 1... c6 {[%clk 0:04:59.9]} 2. g3 {[%clk 0:04:53.6]}
2... d5 {[%clk 0:04:59.8]} 3. Bg2 {[%clk 0:04:52.5]} 3... Nf6 {[%clk 0:04:58.7]}
4. O-O {[%clk 0:04:52.1]} 4... Bf5 {[%clk 0:04:57.3]} 5. c4 {[%clk 0:04:50.8]}
5... e6 {[%clk 0:04:56]} 6. Qb3 {[%clk 0:04:49.3]} 6... Qb6 {[%clk 0:04:54.8]}
7. d3 {[%clk 0:04:48.3]} 7... Be7 {[%clk 0:04:53.8]} 8. Be3 {[%clk 0:04:47.3]}
8... Qxb3 {[%clk 0:04:52.4]} 9. axb3 {[%clk 0:04:47.2]} 9... Nbd7 {[%clk
0:04:51.5]} 10. Rxa7 {[%clk 0:04:33.6]} 10... Rxa7 {[%clk 0:04:50.3]} 11. Bxa7
{[%clk 0:04:32.8]} 11... b6 {[%clk 0:04:49.8]} 12. Nc3 {[%clk 0:04:20.2]} 12...
O-O {[%clk 0:04:48]} 13. Nd4 {[%clk 0:04:09.3]} 13... Ra8 {[%clk 0:04:37.5]} 14.
Nxc6 {[%clk 0:04:06.6]} 14... Bf8 {[%clk 0:04:34.2]} 15. Nb5 {[%clk 0:04:03.6]}
15... dxc4 {[%clk 0:04:30]} 16. bxc4 {[%clk 0:04:00.5]} 16... Rc8 {[%clk
0:04:16]} 17. Ra1 {[%clk 0:03:50.5]} 17... Ne8 {[%clk 0:04:04.8]} 18. Ra6 {[%clk
0:03:45.8]} 18... Nc7 {[%clk 0:04:02.8]} 19. Nxc7 {[%clk 0:03:40.9]} 19... Rxc7
{[%clk 0:04:02.7]} 20. Bxb6 {[%clk 0:03:37.1]} 20... Nxb6 {[%clk 0:04:01.9]} 21.
Rxb6 {[%clk 0:03:35.9]} 21... Ra7 {[%clk 0:04:00.6]} 22. Nxa7 {[%clk 0:03:33.5]}
1-0

[Event "Live Chess"]
[Site "Chess.com"]
[Date "2024.06.01"]
[Round "-"]
[White "Inglaterra"]
[Black "SavagePawn7"]
[Result "1-0"]
[WhiteElo "2036"]
[BlackElo "684"]
[TimeControl "300"]
[EndTime "10:24:51 PDT"]
[Termination "Inglaterra won by resignation"]

1. e4 {[%clk 0:04:57.5]} 1... d5 {[%clk 0:04:57.1]} 2. exd5 {[%clk 0:04:57.4]}
2... Nf6 {[%clk 0:04:55.2]} 3. Nf3 {[%clk 0:04:56.9]} 3... Nxd5 {[%clk
0:04:52.8]} 4. d4 {[%clk 0:04:56.4]} 4... e6 {[%clk 0:04:40.2]} 5. Be2 {[%clk
0:04:55.8]} 5... Nc6 {[%clk 0:04:37.5]} 6. O-O {[%clk 0:04:54.9]} 6... Bd6
{[%clk 0:04:26.2]} 7. c4 {[%clk 0:04:53.3]} 7... Nf6 {[%clk 0:04:20.1]} 8. Nc3
{[%clk 0:04:50.3]} 8... O-O {[%clk 0:04:03.9]} 9. Bg5 {[%clk 0:04:47.3]} 9... h6
{[%clk 0:04:00.7]} 10. Bh4 {[%clk 0:04:45.6]} 10... g5 {[%clk 0:03:57]} 11. Bg3
{[%clk 0:04:43]} 11... Bxg3 {[%clk 0:03:52.1]} 12. hxg3 {[%clk 0:04:39.5]} 12...
Re8 {[%clk 0:03:42.1]} 13. Re1 {[%clk 0:04:36]} 13... e5 {[%clk 0:03:37.2]} 14.
d5 {[%clk 0:04:31.8]} 14... Ne7 {[%clk 0:03:17.8]} 15. Nxe5 {[%clk 0:04:23.2]}
15... Ng6 {[%clk 0:02:48.4]} 16. Nxg6 {[%clk 0:03:36]} 16... fxg6 {[%clk
0:02:46.5]} 17. Bd3 {[%clk 0:03:34.1]} 17... Kg7 {[%clk 0:02:44.3]} 18. Qc2
{[%clk 0:03:28.2]} 18... Rxe1+ {[%clk 0:02:31.4]} 19. Rxe1 {[%clk 0:03:28.1]}
19... Bf5 {[%clk 0:02:10]} 20. Bxf5 {[%clk 0:03:26.3]} 20... gxf5 {[%clk
0:02:08.4]} 21. Qxf5 {[%clk 0:03:25.7]} 21... Qh8 {[%clk 0:01:56.9]} 22. Re7+
{[%clk 0:03:21.4]} 22... Kf8 {[%clk 0:01:52.6]} 23. Qe6 {[%clk 0:03:17.5]} 23...
Qg8 {[%clk 0:01:38.5]} 24. Qxf6+ {[%clk 0:03:15.9]} 1-0